fUSD/lending_fUSD_20240608
["ID","MTS","AMOUNT","RATE_DAILY","PERIOD"]
[328848546,1717876240458,-500.0,0.00029998,4]
[328848547,1717876240469,-549.36997834,0.00029998,4]
[328848548,1717876240480,-500.0,0.00029998,4]
[328848549,1717876240491,-500.0,0.00029998,4]
[328848550,1717876240502,-597.63,0.00029998,4]
[328848551,1717876240515,-542.94,0.00029998,4]
[328848553,1717876240525,-500.0,0.00029998,4]
[328848554,1717876240536,-500.0,0.00029998,4]
[328848555,1717876240548,-542.94,0.00029998,4]
[328848556,1717876240558,-500.0,0.00029998,4]
[328848557,1717876240568,-500.0,0.00029998,4]
[328848558,1717876240579,-500.0,0.00029998,4]
[328848559,1717876240592,-500.0,0.00029998,4]
[328848560,1717876240603,-347.84,0.00029998,4]
[328848561,1717876240614,-500.0,0.00029998,4]
[328848562,1717876240625,-600.52,0.00029998,4]
[328848563,1717876240635,-308.14435,0.00029998,4]
[328848564,1717876240645,-500.0,0.00029998,4]
[328848565,1717876240655,-609.47,0.00029998,4]
[328848566,1717876240667,-500.0,0.00029998,4]
[328848567,1717876240677,-500.0,0.00029998,4]
[328848568,1717876240687,-286.52,0.00029998,4]
[328848569,1717876240698,-313.46,0.00029998,4]
[328848570,1717876240707,-504.10802746,0.00029998,4]
[328848571,1717876240718,-500.0,0.00029998,4]
[328848572,1717876240728,-500.0,0.00029998,4]
[328848573,1717876240738,-503.12376486,0.00029998,4]
[328848574,1717876240748,-815.15,0.00029998,4]
[328848575,1717876240758,-815.15,0.00029998,4]
[328848576,1717876240768,-815.15,0.00029998,4]
[328848577,1717876240778,-500.0,0.00029998,4]
[328848578,1717876240788,-500.0,0.00029998,4]
[328848579,1717876240798,-500.0,0.00029998,4]
[328848580,1717876240808,-500.0,0.00029998,4]
[328848581,1717876240818,-500.0,0.00029998,4]
[328848582,1717876240828,-500.0,0.00029998,4]
[328848583,1717876240839,-500.0,0.00029998,4]
[328848584,1717876240849,-500.0,0.00029998,4]
[328848585,1717876240859,-500.0,0.00029998,4]
[328848586,1717876240870,-500.0,0.00029998,4]
[328848587,1717876240881,-500.0,0.00029998,4]
[328848588,1717876240892,-447.12,0.00029998,4]
[328848589,1717876240905,-500.0,0.00029998,4]
[328848590,1717876240915,-500.0,0.00029998,4]
[328848591,1717876240925,-291.76,0.00029998,4]
[328848592,1717876240935,-500.0,0.00029998,4]
[328848593,1717876240946,-500.0,0.00029998,4]
[328848594,1717876240957,-1000.0,0.00029999,2]
[328848595,1717876240967,-1000.0,0.00029999,2]
[328848596,1717876240977,-1000.0,0.00029999,2]
[328848597,1717876240987,-1000.0,0.00029999,2]
[328848598,1717876240997,-1000.0,0.00029999,2]
[328848599,1717876241007,-1000.0,0.00029999,2]
[328848600,1717876241017,-1000.0,0.00029999,2]
[328848601,1717876241027,-1000.0,0.00029999,2]
[328848602,1717876241037,-1000.0,0.00029999,2]
[328848603,1717876241048,-1000.0,0.00029999,2]
[328848604,1717876241058,-1000.0,0.00029999,2]
[328848605,1717876241068,-1000.0,0.00029999,2]
[328848606,1717876241078,-176.0,0.00029999,2]
[328848607,1717876241088,-170454.62055108,0.00029999,2]
[328848609,1717876241098,-271.65650169,0.00029999,4]
[328848610,1717876241109,-500.0,0.00029999,4]
[328848612,1717876241119,-503.23457017,0.00029999,4]
[328848613,1717876241129,-502.23419928,0.00029999,4]
[328848614,1717876241140,-503.43302149,0.00029999,4]
[328848615,1717876241150,-500.0,0.00029999,4]
[328848616,1717876241160,-503.60752539,0.00029999,4]
[328848617,1717876241170,-500.0,0.00029999,4]
[328848618,1717876241180,-500.0,0.00029999,4]
[328848619,1717876241190,-516.05915166,0.00029999,4]
[328848620,1717876241201,-503.54755237,0.00029999,4]
[328848621,1717876241211,-501.71106599,0.00029999,4]
[328848622,1717876241221,-502.09581621,0.00029999,4]
[328848623,1717876241231,-501.51716592,0.00029999,4]
[328848624,1717876241241,-395.60454965,0.00029999,4]
[328848625,1717876241251,-258.0384721,0.00029999,2]
[328848626,1717876241260,-501.98277401,0.00029999,4]
[328848627,1717876241270,-501.31271547,0.00029999,4]
[328848628,1717876241281,-509.64399644,0.00029999,4]
[328848629,1717876241291,-3577.25,0.00029999,2]
[328848630,1717876241301,-503.2338732,0.00029999,4]
[328848631,1717876241310,-569.92245641,0.00029999,4]
[328848632,1717876241320,-499.16265109,0.00029999,4]
[328848633,1717876241331,-200.0,0.00029999,4]
[328848634,1717876241341,-499.4856506,0.00029999,4]
[328848635,1717876241351,-319.94091388,0.00029999,4]
[328848636,1717876241362,-501.97847051,0.00029999,4]
[328848637,1717876241373,-541.37767182,0.00029999,4]
[328848638,1717876241384,-845.72956364,0.00029999,2]
[328848639,1717876241393,-503.08193134,0.00029999,4]
[328848640,1717876241404,-502.93555002,0.00029999,4]
[328848641,1717876241414,-504.03939517,0.00029999,4]
[328848642,1717876241424,-504.34049154,0.00029999,4]
[328848643,1717876241434,-503.7623327,0.00029999,4]
[328848644,1717876241444,-500.0,0.00029999,4]
[328848645,1717876241454,-502.78158715,0.00029999,4]
[328848646,1717876241588,-502.96009242,0.00029999,4]
[328848647,1717876241598,-500.0,0.00029999,4]
[328848648,1717876241608,-643.67,0.00029999,4]
[328848649,1717876241618,-500.0,0.00029999,4]
[328848650,1717876241629,-500.0,0.00029999,4]
[328848651,1717876241639,-500.0,0.00029999,4]
[328848652,1717876241649,-331.64,0.00029999,4]
[328848653,1717876241659,-509.07718719,0.00029999,4]
[328848654,1717876241669,-506.23433438,0.00029999,4]
[328848655,1717876241679,-505.44305051,0.00029999,4]
[328848656,1717876241690,-500.0,0.00029999,4]
[328848657,1717876241700,-322.22,0.00029999,4]
[328848658,1717876241710,-504.63466486,0.00029999,4]
[328848659,1717876241720,-510.19242826,0.00029999,4]
[328848660,1717876241730,-507.12421363,0.00029999,4]
[328848661,1717876241739,-502.00734431,0.00029999,4]
[328848662,1717876241749,-503.03733623,0.00029999,4]
[328848663,1717876241758,-501.32989208,0.00029999,4]
[328848664,1717876241768,-503.42086288,0.00029999,4]
[328848665,1717876241779,-505.95099038,0.00029999,4]
[328848666,1717876241788,-512.18078274,0.00029999,4]
[328848667,1717876241798,-500.0,0.00029999,4]
[328848668,1717876241808,-542.56,0.00029999,4]
[328848669,1717876241818,-507.83765858,0.00029999,4]
[328848670,1717876241828,-500.0,0.00029999,4]
[328848671,1717876241838,-399.77,0.00029999,4]
[328848672,1717876241847,-506.54302162,0.00029999,4]
[328848673,1717876241858,-500.0,0.00029999,4]
[328848674,1717876241868,-500.0,0.00029999,4]
[328848675,1717876241878,-504.00157036,0.00029999,4]
[328848676,1717876241888,-513.68100353,0.00029999,4]
[328848677,1717876241898,-504.80491952,0.00029999,4]
[328848678,1717876241908,-502.16799783,0.00029999,4]
[328848679,1717876241918,-500.0,0.00029999,4]
[328848680,1717876241929,-255.02,0.00029999,4]
[328848681,1717876241939,-515.28063906,0.00029999,4]
[328848682,1717876241950,-500.0,0.00029999,4]
[328848683,1717876241959,-500.0,0.00029999,4]
[328848684,1717876241970,-500.0,0.00029999,4]
[328848685,1717876241979,-155.505113,0.00029999,7]
[328848686,1717876241990,-2011.70270977,0.00029999,30]
[328848687,1717876242000,-522.47690317,0.00029999,4]
[328848688,1717876242011,-506.83951061,0.00029999,4]
[328848689,1717876242020,-500.0,0.00029999,4]
[328848690,1717876242030,-434.46,0.00029999,4]
[328848691,1717876242040,-507.43065217,0.00029999,4]
[328848692,1717876242049,-500.0,0.00029999,4]
[328848693,1717876242059,-252.3696587,0.00029999,4]
[328848694,1717876242068,-506.22839847,0.00029999,4]
[328848695,1717876242078,-500.0,0.00029999,4]
[328848696,1717876242087,-502.29400085,0.00029999,4]
[328848697,1717876242097,-500.0,0.00029999,4]
[328848698,1717876242107,-253.74,0.00029999,4]
[328848699,1717876242117,-503.37858141,0.00029999,4]
[328848700,1717876242127,-500.0,0.00029999,4]
[328848701,1717876242136,-500.0,0.00029999,4]
[328848702,1717876242146,-229.59546124,0.00029999,4]
[328848703,1717876242156,-507.33348042,0.00029999,4]
[328848704,1717876242168,-510.81354145,0.00029999,4]
[328848705,1717876242179,-202.01976557,0.00029999,4]
[328848706,1717876242190,-514.125426,0.00029999,4]
[328848707,1717876242200,-518.33771294,0.00029999,4]
[328848708,1717876242210,-500.0,0.00029999,4]
[328848709,1717876242221,-511.3215188,0.00029999,4]
[328848710,1717876242230,-527.87,0.00029999,4]
[328848711,1717876242240,-500.0,0.00029999,4]
[328848712,1717876242250,-217.0,0.00029999,4]
[328848713,1717876242259,-500.0,0.00029999,4]
[328848714,1717876242269,-300.94,0.00029999,4]
[328848715,1717876242279,-500.0,0.00029999,4]
[328848716,1717876242289,-508.93692199,0.00029999,4]
[328848717,1717876242298,-514.67,0.00029999,4]
[328848718,1717876242308,-500.0,0.00029999,4]
[328848719,1717876242317,-512.53540374,0.00029999,4]
[328848720,1717876242327,-500.0,0.00029999,4]
[328848721,1717876242337,-501.32008475,0.00029999,4]
[328848722,1717876242346,-500.0,0.00029999,4]
[328848723,1717876242356,-500.0,0.00029999,4]
[328848724,1717876242366,-450.07,0.00029999,4]
[328848725,1717876242376,-500.0,0.00029999,4]
[328848726,1717876242386,-375.82,0.00029999,4]
[328848727,1717876242395,-500.0,0.00029999,4]
[328848728,1717876242405,-500.0,0.00029999,4]
[328848729,1717876242415,-500.0,0.00029999,4]
[328848730,1717876242425,-500.0,0.00029999,4]
[328848731,1717876242436,-502.23011867,0.00029999,4]
[328848732,1717876242449,-500.0,0.00029999,4]
[328848733,1717876242460,-500.0,0.00029999,4]
[328848734,1717876242471,-508.26988629,0.00029999,4]
[328848735,1717876242481,-226.38,0.00029999,4]
[328848736,1717876242491,-507.50643209,0.00029999,4]
[328848737,1717876242501,-307.840722,0.00029999,7]
[328848738,1717876242516,-307.840722,0.00029999,7]
[328848739,1717876242526,-307.840722,0.00029999,7]
[328848740,1717876242536,-500.0,0.00029999,4]
[328848741,1717876242546,-307.840722,0.00029999,7]
[328848742,1717876242557,-307.840722,0.00029999,7]
[328848743,1717876242566,-307.840722,0.00029999,7]
[328848744,1717876242575,-503.157356,0.00029999,4]
[328848745,1717876242587,-507.47015622,0.00029999,4]
[328848746,1717876242597,-500.0,0.00029999,4]
[328848747,1717876242607,-156.6,0.00029999,4]
[328848748,1717876242616,-540.69,0.00029999,4]
[328848749,1717876242625,-500.0,0.00029999,4]
[328848750,1717876242636,-501.65,0.00029999,4]
[328848751,1717876242647,-513.11534522,0.00029999,4]
[328848752,1717876242656,-500.0,0.00029999,4]
[328848753,1717876242666,-540.8982307,0.00029999,4]
[328848754,1717876242676,-501.75814945,0.00029999,4]
[328848755,1717876242686,-513.32478724,0.00029999,4]
[328848756,1717876242696,-509.37468792,0.00029999,4]
[328848757,1717876242706,-510.32374129,0.00029999,4]
[328848758,1717876242716,-469.71078182,0.00029999,4]
[328848759,1717876242726,-504.56723612,0.00029999,4]
[328848760,1717876242736,-517.3575629,0.00029999,4]
[328848761,1717876242746,-510.04017793,0.00029999,4]
[328848762,1717876242756,-622.3281474,0.00029999,4]
[328848763,1717876242765,-354.27310247,0.00029999,4]
[328848764,1717876242775,-501.86182504,0.00029999,4]
[328848765,1717876242785,-151.0,0.00029999,7]
[328848766,1717876242796,-221.808784,0.00029999,7]
[328848767,1717876242805,-502.99172646,0.00029999,4]
[328848768,1717876242815,-520.90253863,0.00029999,4]
[328848769,1717876242825,-500.0,0.00029999,4]
[328848770,1717876242835,-510.16530863,0.00029999,4]
[328848771,1717876242845,-505.0590245,0.00029999,4]
[328848772,1717876242856,-500.0,0.00029999,4]
[328848773,1717876242866,-500.0,0.00029999,4]
[328848774,1717876242876,-511.21161159,0.00029999,4]
[328848775,1717876242887,-500.0,0.00029999,4]
[328848776,1717876242897,-509.52289733,0.00029999,4]
[328848777,1717876242906,-500.0,0.00029999,4]
[328848779,1717876242916,-517.01740518,0.00029999,4]
[328848782,1717876242926,-500.0,0.00029999,4]
[328848784,1717876242936,-500.0,0.00029999,4]
[328848787,1717876242946,-503.13538207,0.00029999,4]
[328848789,1717876242955,-500.0,0.00029999,4]
[328848791,1717876242964,-628.55,0.00029999,4]
[328848793,1717876242974,-500.0,0.00029999,4]
[328848795,1717876242983,-509.94188502,0.00029999,4]
[328848797,1717876242993,-500.0,0.00029999,4]
[328848799,1717876243002,-500.0,0.00029999,4]
[328848801,1717876243012,-298.53309906,0.00029999,4]
[328848802,1717876243021,-511.82298524,0.00029999,4]
[328848803,1717876243031,-503.6904406,0.00029999,4]
[328848804,1717876243040,-500.0,0.00029999,4]
[328848805,1717876243049,-500.0,0.00029999,4]
[328848806,1717876243059,-504.01218564,0.00029999,4]
[328848807,1717876243069,-188.5,0.00029999,4]
[328848808,1717876243078,-519.48404735,0.00029999,4]
[328848809,1717876243088,-500.0,0.00029999,4]
[328848810,1717876243098,-500.0,0.00029999,4]
[328848811,1717876243108,-500.0,0.00029999,4]
[328848812,1717876243118,-500.0,0.00029999,4]
[328848813,1717876243127,-513.80088748,0.00029999,4]
[328848814,1717876243138,-500.0,0.00029999,4]
[328848815,1717876243148,-247.48804938,0.00029999,4]
[328848816,1717876243158,-500.0,0.00029999,4]
[328848817,1717876243169,-500.0,0.00029999,4]
[328848818,1717876243179,-500.0,0.00029999,4]
[328848819,1717876243188,-500.0,0.00029999,4]
[328848820,1717876243199,-500.0,0.00029999,4]
[328848821,1717876243209,-500.0,0.00029999,4]
[328848822,1717876243219,-222.59,0.00029999,4]
[328848823,1717876243230,-514.94512932,0.00029999,4]
[328848824,1717876243240,-500.0,0.00029999,4]
[328848825,1717876243250,-500.0,0.00029999,4]
[328848826,1717876243259,-205.17,0.00029999,4]
[328848827,1717876243268,-507.63279893,0.00029999,4]
[328848828,1717876243278,-265.84526037,0.00029999,4]
[328848829,1717876243289,-550.07668007,0.00029999,4]
[328848830,1717876243299,-501.42494957,0.00029999,4]
[328848831,1717876243309,-500.0,0.00029999,4]
[328848832,1717876243318,-500.0,0.00029999,4]
[328848833,1717876243330,-500.0,0.00029999,4]
[328848834,1717876243339,-185.12,0.00029999,4]
[328848835,1717876243349,-500.0,0.00029999,4]
[328848836,1717876243359,-508.03176646,0.00029999,4]
[328848837,1717876243369,-500.0,0.00029999,4]
[328848838,1717876243378,-500.0,0.00029999,4]
[328848839,1717876243388,-496.65336793,0.00029999,4]
[328848840,1717876243397,-500.0,0.00029999,4]
[328848841,1717876243407,-1525.09068788,0.00029999,4]
[328848842,1717876243415,-510.16096089,0.00029999,4]
[328848843,1717876243425,-505.95059369,0.00029999,4]
[328848844,1717876243434,-512.49,0.00029999,4]
[328848845,1717876243443,-507.06214863,0.00029999,4]
[328848846,1717876243453,-500.0,0.00029999,4]
[328848847,1717876243462,-571.63,0.00029999,4]
[328848848,1717876243472,-523.23,0.00029999,4]
[328848849,1717876243482,-500.0,0.00029999,4]
[328848850,1717876243492,-500.0,0.00029999,4]
[328848851,1717876243502,-167.75,0.00029999,4]
[328848852,1717876243516,-508.99256256,0.00029999,4]
[328848853,1717876243527,-512.81655606,0.00029999,4]
[328848854,1717876243536,-512.03272699,0.00029999,4]
[328848855,1717876243546,-511.66085497,0.00029999,4]
[328848856,1717876243557,-506.13271933,0.00029999,4]
[328848857,1717876243567,-500.0,0.00029999,4]
[328848858,1717876243577,-500.0,0.00029999,4]
[328848859,1717876243586,-500.0,0.00029999,4]
[328848860,1717876243598,-507.34570408,0.00029999,4]
[328848861,1717876243609,-500.0,0.00029999,4]
[328848862,1717876243619,-500.0,0.00029999,4]
[328848863,1717876243629,-270.3,0.00029999,4]
[328848864,1717876243639,-500.0,0.00029999,4]
[328848865,1717876243648,-500.0,0.00029999,4]
[328848866,1717876243659,-348.1,0.00029999,4]
[328848867,1717876243668,-500.0,0.00029999,4]
[328848868,1717876243679,-500.0,0.00029999,4]
[328848869,1717876243689,-500.0,0.00029999,4]
[328848870,1717876243699,-212.1,0.00029999,4]
[328848871,1717876243709,-500.0,0.00029999,4]
[328848872,1717876243719,-506.34312779,0.00029999,4]
[328848873,1717876243728,-500.0,0.00029999,4]
[328848874,1717876243739,-578.70633398,0.00029999,4]
[328848875,1717876243749,-500.0,0.00029999,4]
[328848876,1717876243759,-515.54614968,0.00029999,4]
[328848878,1717876243769,-500.0,0.00029999,4]
[328848879,1717876243779,-500.0,0.00029999,4]
[328848880,1717876243788,-500.0,0.00029999,4]
[328848882,1717876243798,-500.0,0.00029999,4]
[328848883,1717876243808,-500.0,0.00029999,4]
[328848884,1717876243817,-500.0,0.00029999,4]
[328848886,1717876243827,-509.58871154,0.00029999,4]
[328848888,1717876243838,-500.0,0.00029999,4]
[328848890,1717876243848,-500.0,0.00029999,4]
[328848892,1717876243859,-500.0,0.00029999,4]
[328848894,1717876243869,-500.0,0.00029999,4]
[328848895,1717876243879,-500.0,0.00029999,4]
[328848896,1717876243888,-500.0,0.00029999,4]
[328848897,1717876243899,-391.45,0.00029999,4]
[328848898,1717876243909,-511.02437322,0.00029999,4]
[328848899,1717876243918,-510.46912724,0.00029999,4]
[328848900,1717876243928,-500.0,0.00029999,4]
[328848901,1717876243938,-505.84274503,0.00029999,4]
[328848902,1717876243948,-500.0,0.00029999,4]
[328848903,1717876243958,-500.0,0.00029999,4]
[328848904,1717876243968,-500.0,0.00029999,4]
[328848905,1717876243977,-294.93,0.00029999,4]
[328848906,1717876243988,-500.0,0.00029999,4]
[328848907,1717876243999,-500.0,0.00029999,4]
[328848908,1717876244010,-500.0,0.00029999,4]
[328848909,1717876244021,-500.0,0.00029999,4]
[328848910,1717876244031,-500.0,0.00029999,4]
[328848911,1717876244041,-500.0,0.00029999,4]
[328848912,1717876244051,-641.05,0.00029999,4]
[328848913,1717876244062,-500.0,0.00029999,4]
[328848914,1717876244072,-500.0,0.00029999,4]
[328848915,1717876244082,-500.0,0.00029999,4]
[328848916,1717876244091,-500.0,0.00029999,4]
[328848917,1717876244101,-390.96,0.00029999,4]
[328848918,1717876244111,-500.0,0.00029999,4]
[328848919,1717876244120,-396.63,0.00029999,4]
[328848920,1717876244130,-500.0,0.00029999,4]
[328848921,1717876244139,-500.0,0.00029999,4]
[328848922,1717876244149,-500.0,0.00029999,4]
[328848923,1717876244158,-500.0,0.00029999,4]
[328848924,1717876244168,-500.0,0.00029999,4]
[328848925,1717876244177,-500.0,0.00029999,4]
[328848926,1717876244187,-500.0,0.00029999,4]
[328848927,1717876244196,-416.02,0.00029999,4]
[328848928,1717876244206,-500.0,0.00029999,4]
[328848929,1717876244216,-500.0,0.00029999,4]
[328848930,1717876244226,-500.0,0.00029999,4]
[328848931,1717876244236,-500.0,0.00029999,4]
[328848932,1717876244247,-500.0,0.00029999,4]
[328848933,1717876244258,-500.0,0.00029999,4]
[328848934,1717876244268,-269.96,0.00029999,4]
[328848935,1717876244278,-362.14,0.00029999,4]
[328848936,1717876244287,-500.0,0.00029999,4]
[328848937,1717876244297,-500.0,0.00029999,4]
[328848938,1717876244307,-500.0,0.00029999,4]
[328848939,1717876244317,-500.0,0.00029999,4]
[328848940,1717876244328,-215.93,0.00029999,4]
[328848941,1717876244339,-500.0,0.00029999,4]
[328848942,1717876244349,-290.78,0.00029999,4]
[328848943,1717876244359,-500.0,0.00029999,4]
[328848944,1717876244369,-500.0,0.00029999,4]
[328848945,1717876244380,-494.47,0.00029999,4]
[328848946,1717876244389,-500.0,0.00029999,4]
[328848947,1717876244398,-500.0,0.00029999,4]
[328848948,1717876244408,-500.0,0.00029999,4]
[328848949,1717876244417,-500.0,0.00029999,4]
[328848950,1717876244427,-500.0,0.00029999,4]
[328848952,1717876244436,-500.0,0.00029999,4]
[328848954,1717876244447,-500.0,0.00029999,4]
[328848956,1717876244456,-500.0,0.00029999,4]
[328848958,1717876244465,-500.0,0.00029999,4]
[328848959,1717876244475,-614.84,0.00029999,4]
[328848960,1717876244486,-500.0,0.00029999,4]
[328848961,1717876244495,-576.13,0.00029999,4]
[328848962,1717876244505,-618.18,0.00029999,4]
[328848963,1717876244519,-580.62,0.00029999,4]
[328848964,1717876244529,-736.85,0.00029999,4]
[328848965,1717876244539,-500.0,0.00029999,4]
[328848966,1717876244551,-736.85,0.00029999,4]
[328848967,1717876244561,-500.0,0.00029999,4]
[328848968,1717876244571,-736.85,0.00029999,4]
[328848969,1717876244581,-240.14,0.00029999,4]
[328848970,1717876244593,-736.85,0.00029999,4]
[328848971,1717876244603,-736.85,0.00029999,4]
[328848972,1717876244732,-270.938094,0.00029999,7]
[328848973,1717876244744,-736.85,0.00029999,4]
[328848974,1717876244754,-270.938094,0.00029999,7]
[328848975,1717876244765,-736.85,0.00029999,4]
[328848976,1717876244775,-736.85,0.00029999,4]
[328848977,1717876244785,-270.938094,0.00029999,7]
[328848978,1717876244795,-736.85,0.00029999,4]
[328848979,1717876244805,-736.85,0.00029999,4]
[328848980,1717876244816,-736.85,0.00029999,4]
[328848981,1717876244826,-736.85,0.00029999,4]
[328848982,1717876244836,-736.85,0.00029999,4]
[328848983,1717876244846,-736.85,0.00029999,4]
[328848984,1717876244857,-736.85,0.00029999,4]
[328848985,1717876244867,-736.85,0.00029999,4]
[328848986,1717876244878,-736.85,0.00029999,4]
[328848987,1717876244888,-736.85,0.00029999,4]
[328848988,1717876244898,-736.85,0.00029999,4]
[328848989,1717876244908,-500.0,0.00029999,4]
[328848990,1717876244918,-500.0,0.00029999,4]
[328848991,1717876244928,-500.0,0.00029999,4]
[328848992,1717876244938,-737.08,0.00029999,4]
[328848993,1717876244952,-500.0,0.00029999,4]
[328848994,1717876244962,-158.17,0.00029999,4]
[328848995,1717876244972,-507.6,0.00029999,4]
[328848996,1717876244982,-507.6,0.00029999,4]
[328848997,1717876244992,-500.0,0.00029999,4]
[328848998,1717876245002,-507.6,0.00029999,4]
[328848999,1717876245013,-500.0,0.00029999,4]
[328849000,1717876245023,-507.6,0.00029999,4]
[328849001,1717876245033,-609.0,0.00029999,4]
[328849002,1717876245043,-507.6,0.00029999,4]
[328849003,1717876245053,-507.6,0.00029999,4]
[328849004,1717876245063,-500.0,0.00029999,4]
[328849005,1717876245073,-507.6,0.00029999,4]
[328849006,1717876245082,-273.58,0.00029999,4]
[328849007,1717876245092,-507.6,0.00029999,4]
[328849008,1717876245102,-507.6,0.00029999,4]
[328849009,1717876245112,-507.6,0.00029999,4]
[328849010,1717876245122,-507.6,0.00029999,4]
[328849011,1717876245132,-507.6,0.00029999,4]
[328849012,1717876245142,-507.6,0.00029999,4]
[328849013,1717876245152,-507.6,0.00029999,4]
[328849014,1717876245162,-507.6,0.00029999,4]
[328849015,1717876245172,-500.0,0.00029999,4]
[328849016,1717876245182,-507.6,0.00029999,4]
[328849017,1717876245191,-500.0,0.00029999,4]
[328849018,1717876245207,-507.6,0.00029999,4]
[328849019,1717876245216,-246.7,0.00029999,4]
[328849020,1717876245226,-507.6,0.00029999,4]
[328849021,1717876245235,-507.6,0.00029999,4]
[328849022,1717876245245,-507.8,0.00029999,4]
[328849023,1717876245256,-500.0,0.00029999,4]
[328849024,1717876245266,-500.0,0.00029999,4]
[328849025,1717876245275,-190.981087,0.00029999,7]
[328849026,1717876245285,-500.0,0.00029999,4]
[328849027,1717876245296,-500.0,0.00029999,4]
[328849028,1717876245306,-500.0,0.00029999,4]
[328849029,1717876245316,-500.0,0.00029999,4]
[328849030,1717876245327,-302.17,0.00029999,4]
[328849031,1717876245338,-500.0,0.00029999,4]
[328849032,1717876245348,-500.0,0.00029999,4]
[328849033,1717876245359,-500.0,0.00029999,4]
[328849034,1717876245370,-500.0,0.00029999,4]
[328849035,1717876245381,-500.0,0.00029999,4]
[328849036,1717876245391,-500.0,0.00029999,4]
[328849037,1717876245401,-500.0,0.00029999,4]
[328849038,1717876245411,-500.0,0.00029999,4]
[328849039,1717876245421,-500.0,0.00029999,4]
[328849040,1717876245431,-500.0,0.00029999,4]
[328849041,1717876245440,-500.0,0.00029999,4]
[328849042,1717876245454,-500.0,0.00029999,4]
[328849043,1717876245464,-500.0,0.00029999,4]
[328849044,1717876245473,-500.0,0.00029999,4]
[328849045,1717876245483,-500.0,0.00029999,4]
[328849046,1717876245493,-500.0,0.00029999,4]
[328849047,1717876245503,-500.0,0.00029999,4]
[328849048,1717876245518,-500.0,0.00029999,4]
[328849049,1717876245528,-500.0,0.00029999,4]
[328849050,1717876245538,-500.0,0.00029999,4]
[328849051,1717876245549,-178.48085178,0.00029999,4]
[328849052,1717876245559,-500.0,0.00029999,4]
[328849053,1717876245569,-500.0,0.00029999,4]
[328849054,1717876245579,-500.0,0.00029999,4]
[328849055,1717876245592,-500.0,0.00029999,4]
[328849056,1717876245602,-500.0,0.00029999,4]
[328849057,1717876245612,-500.0,0.00029999,4]
[328849058,1717876245622,-500.0,0.00029999,4]
[328849059,1717876245632,-500.0,0.00029999,4]
[328849060,1717876245641,-500.0,0.00029999,4]
[328849061,1717876245651,-500.0,0.00029999,4]
[328849062,1717876245662,-511.0074108,0.00029999,4]
[328849063,1717876245671,-291.256126,0.00029999,7]
[328849064,1717876245680,-431.72,0.00029999,4]
[328849065,1717876245689,-500.0,0.00029999,4]
[328849066,1717876245702,-500.0,0.00029999,4]
[328849067,1717876245711,-500.0,0.00029999,4]
[328849068,1717876245721,-500.0,0.00029999,4]
[328849069,1717876245731,-500.0,0.00029999,4]
[328849070,1717876245741,-500.0,0.00029999,4]
[328849071,1717876245750,-500.0,0.00029999,4]
[328849072,1717876245760,-253.83,0.00029999,4]